Department family,Entity,Date,Expense Type,Expense area,Supplier,Transaction number,AP Amount (�)
Department of Health,NHS Barnsley CCG,28/02/2019,C&M-PMS Contract Value,PRC DELEGATED CO-COMMISSIONING,NHS BARNSLEY CCG GP PRACTICE,25925289,"44,649.93"
Department of Health,NHS Barnsley CCG,28/02/2019,C&M-PMS DES Minor Surgery,PRC DELEGATED CO-COMMISSIONING,NHS BARNSLEY CCG GP PRACTICE,25925289,"4,262.00"
Department of Health,NHS Barnsley CCG,28/02/2019,C&M-PMS Out of Hours Opt Outs,PRC DELEGATED CO-COMMISSIONING,NHS BARNSLEY CCG GP PRACTICE,25925289,176.85
Department of Health,NHS Barnsley CCG,28/02/2019,C&M-PMS Prem Rates,PRC DELEGATED CO-COMMISSIONING,NHS BARNSLEY CCG GP PRACTICE,25925289,"2,406.00"
Department of Health,NHS Barnsley CCG,28/02/2019,C&M-PMS QOF Aspiration,PRC DELEGATED CO-COMMISSIONING,NHS BARNSLEY CCG GP PRACTICE,25925289,"3,886.85"
Department of Health,NHS Barnsley CCG,28/02/2019,Clinical&Medical-Commercial Sector,OUT OF HOURS,BARNSLEY HEALTHCARE FEDERATION,25835433,"16,666.67"
Department of Health,NHS Barnsley CCG,28/02/2019,Soc Care-Support Prim Care,COMMISSIONING SCHEMES,BARNSLEY HEALTHCARE FEDERATION,25835433,"30,000.00"
Department of Health,NHS Barnsley CCG,28/02/2019,C&M-APMS Contract Value,PRC DELEGATED CO-COMMISSIONING,BARNSLEY HEALTHCARE FEDERATION,25925278,"27,180.50"
Department of Health,NHS Barnsley CCG,28/02/2019,C&M-APMS OOH Opt Outs,PRC DELEGATED CO-COMMISSIONING,BARNSLEY HEALTHCARE FEDERATION,25925278,1.52
Department of Health,NHS Barnsley CCG,28/02/2019,C&M-APMS Prem Actual Rent,PRC DELEGATED CO-COMMISSIONING,BARNSLEY HEALTHCARE FEDERATION,25925278,"1,310.42"
Department of Health,NHS Barnsley CCG,28/02/2019,C&M-PMS QOF Aspiration,PRC DELEGATED CO-COMMISSIONING,BARNSLEY HEALTHCARE FEDERATION,25925278,"2,327.36"
Department of Health,NHS Barnsley CCG,28/02/2019,C&M-APMS Contract Value,PRC DELEGATED CO-COMMISSIONING,BARNSLEY HEALTHCARE FEDERATION,25925282,"32,058.05"
Department of Health,NHS Barnsley CCG,28/02/2019,C&M-APMS OOH Opt Outs,PRC DELEGATED CO-COMMISSIONING,BARNSLEY HEALTHCARE FEDERATION,25925282,27.35
Department of Health,NHS Barnsley CCG,28/02/2019,C&M-APMS Prem Actual Rent,PRC DELEGATED CO-COMMISSIONING,BARNSLEY HEALTHCARE FEDERATION,25925282,"2,150.00"
Department of Health,NHS Barnsley CCG,28/02/2019,C&M-APMS Prem Healthcentre Rent,PRC DELEGATED CO-COMMISSIONING,BARNSLEY HEALTHCARE FEDERATION,25925282,"7,389.98"
Department of Health,NHS Barnsley CCG,28/02/2019,C&M-PMS DES Learn Dsblty Hlth Chk,PRC DELEGATED CO-COMMISSIONING,BARNSLEY HEALTHCARE FEDERATION,25925282,560.00
Department of Health,NHS Barnsley CCG,28/02/2019,C&M-PMS QOF Aspiration,PRC DELEGATED CO-COMMISSIONING,BARNSLEY HEALTHCARE FEDERATION,25925282,"2,420.56"
Department of Health,NHS Barnsley CCG,28/02/2019,C&M-APMS Contract Value,PRC DELEGATED CO-COMMISSIONING,BARNSLEY HEALTHCARE FEDERATION,25925287,"28,532.53"
Department of Health,NHS Barnsley CCG,28/02/2019,C&M-APMS OOH Opt Outs,PRC DELEGATED CO-COMMISSIONING,BARNSLEY HEALTHCARE FEDERATION,25925287,39.71
Department of Health,NHS Barnsley CCG,28/02/2019,C&M-APMS Prem Actual Rent,PRC DELEGATED CO-COMMISSIONING,BARNSLEY HEALTHCARE FEDERATION,25925287,"6,200.00"
Department of Health,NHS Barnsley CCG,28/02/2019,C&M-PMS QOF Aspiration,PRC DELEGATED CO-COMMISSIONING,BARNSLEY HEALTHCARE FEDERATION,25925287,"2,727.89"
Department of Health,NHS Barnsley CCG,28/02/2019,Soc Care-Support Prim Care,GP FORWARD VIEW,BARNSLEY HEALTHCARE FEDERATION,26003767,"132,164.41"
Department of Health,NHS Barnsley CCG,28/02/2019,Clinical&Medical-Commercial Sector,OUT OF HOURS,BARNSLEY HEALTHCARE FEDERATION,26003774,"124,715.46"
Department of Health,NHS Barnsley CCG,28/02/2019,C&M-PMS Practice Transformational Support,COMMISSIONING SCHEMES,BARNSLEY HEALTHCARE FEDERATION,26203152,"43,000.00"
Department of Health,NHS Barnsley CCG,28/02/2019,C&M-PMS Contract Value,PRC DELEGATED CO-COMMISSIONING,BARNSLEY HEALTHCARE FEDERATION CIC (GOLDTHORPE),25932053,"41,879.35"
Department of Health,NHS Barnsley CCG,28/02/2019,C&M-PMS Out of Hours Opt Outs,PRC DELEGATED CO-COMMISSIONING,BARNSLEY HEALTHCARE FEDERATION CIC (GOLDTHORPE),25932053,14.69
Department of Health,NHS Barnsley CCG,28/02/2019,C&M-PMS Prem Healthcentre Rent,PRC DELEGATED CO-COMMISSIONING,BARNSLEY HEALTHCARE FEDERATION CIC (GOLDTHORPE),25932053,"11,814.95"
Department of Health,NHS Barnsley CCG,28/02/2019,C&M-PMS QOF Aspiration,PRC DELEGATED CO-COMMISSIONING,BARNSLEY HEALTHCARE FEDERATION CIC (GOLDTHORPE),25932053,"4,158.04"
Department of Health,NHS Barnsley CCG,31/01/2019,Hcare Srv Rec Fdtn Trust-CQUIN,ACUTE COMMISSIONING,BARNSLEY HOSPITAL NHS FOUNDATION TRUST,25693216,"10,847.00"
Department of Health,NHS Barnsley CCG,31/01/2019,Hcare Srv Rec Fdtn Trust-Contract Baseline,ACUTE COMMISSIONING,BARNSLEY HOSPITAL NHS FOUNDATION TRUST,25693216,"562,297.00"
Department of Health,NHS Barnsley CCG,31/01/2019,Hcare Srv Rec Fdtn Trust-CQUIN,ACUTE COMMISSIONING,BARNSLEY HOSPITAL NHS FOUNDATION TRUST,25693218,"270,572.00"
Department of Health,NHS Barnsley CCG,31/01/2019,Hcare Srv Rec Fdtn Trust-Contract Baseline,ACUTE COMMISSIONING,BARNSLEY HOSPITAL NHS FOUNDATION TRUST,25693218,"11,427,790.00"
Department of Health,NHS Barnsley CCG,31/01/2019,Hcare Srv Rec Fdtn Trust-CQUIN,INTERMEDIATE CARE,BARNSLEY HOSPITAL NHS FOUNDATION TRUST,25693221,"5,042.00"
Department of Health,NHS Barnsley CCG,31/01/2019,Hcare Srv Rec Fdtn Trust-CQUIN,LONG TERM CONDITIONS,BARNSLEY HOSPITAL NHS FOUNDATION TRUST,25693221,"3,826.00"
Department of Health,NHS Barnsley CCG,31/01/2019,Hcare Srv Rec Fdtn Trust-Contract Baseline,INTERMEDIATE CARE,BARNSLEY HOSPITAL NHS FOUNDATION TRUST,25693221,"201,654.00"
Department of Health,NHS Barnsley CCG,31/01/2019,Hcare Srv Rec Fdtn Trust-Contract Baseline,LONG TERM CONDITIONS,BARNSLEY HOSPITAL NHS FOUNDATION TRUST,25693221,"153,046.00"
Department of Health,NHS Barnsley CCG,31/01/2019,Telecoms-Data lines,PRIMARY CARE IT,BARNSLEY HOSPITAL NHS FOUNDATION TRUST,25677834,"30,442.87"
Department of Health,NHS Barnsley CCG,28/02/2019,Clinical&Medical-Othe Public Sector,CHILD AND ADOLESCENT MENTAL HEALTH,BARNSLEY METROPOLITAN BOROUGH COUNCIL,25835440,"20,540.00"
Department of Health,NHS Barnsley CCG,28/02/2019,Clinical&Medical-Othe Public Sector,COMMISSIONING - NON ACUTE,BARNSLEY METROPOLITAN BOROUGH COUNCIL,25835440,"431,449.00"
Department of Health,NHS Barnsley CCG,28/02/2019,Clinical&Medical-Othe Public Sector,COMMUNITY SERVICES,BARNSLEY METROPOLITAN BOROUGH COUNCIL,25835440,"16,083.00"
Department of Health,NHS Barnsley CCG,28/02/2019,Local AuthorityRevenue-Non-Contract,COMMUNITY SERVICES,BARNSLEY METROPOLITAN BOROUGH COUNCIL,25835440,"-4,875.00"
Department of Health,NHS Barnsley CCG,28/02/2019,Services From Local Authorities,SAFEGUARDING,BARNSLEY METROPOLITAN BOROUGH COUNCIL,25835440,"6,304.00"
Department of Health,NHS Barnsley CCG,28/02/2019,Soc Care-Other Soc Care,COMMUNITY SERVICES,BARNSLEY METROPOLITAN BOROUGH COUNCIL,25835440,"135,167.00"
Department of Health,NHS Barnsley CCG,28/02/2019,Soc Care-Re-ablement services,COMMUNITY SERVICES,BARNSLEY METROPOLITAN BOROUGH COUNCIL,25835440,"193,750.00"
Department of Health,NHS Barnsley CCG,28/02/2019,Social Care-Res Long Stay Exp,LONG TERM CONDITIONS,BARNSLEY METROPOLITAN BOROUGH COUNCIL,25835440,"426,250.00"
Department of Health,NHS Barnsley CCG,28/02/2019,Social Care-Res Short Stay Exp,COMMUNITY SERVICES,BARNSLEY METROPOLITAN BOROUGH COUNCIL,25835440,"67,500.00"
Department of Health,NHS Barnsley CCG,28/02/2019,Cont Care- Children,CHC CHILD PERS HLTH BUD,BARNSLEY METROPOLITAN BOROUGH COUNCIL,25835442,"113,566.81"
Department of Health,NHS Barnsley CCG,28/02/2019,Cont Care- Prior Year Payments,FUNDED NURSING CARE,BARNSLEY METROPOLITAN BOROUGH COUNCIL,26022363,"8,743.31"
Department of Health,NHS Barnsley CCG,28/02/2019,Cont Care-Funded Nursing Care Allow,FUNDED NURSING CARE,BARNSLEY METROPOLITAN BOROUGH COUNCIL,26022363,"176,213.99"
Department of Health,NHS Barnsley CCG,28/02/2019,Clinical&Medical-Othe Public Sector,Mental Health Services - S117 Mental Health,BARNSLEY METROPOLITAN BOROUGH COUNCIL,26162680,"-90,685.72"
Department of Health,NHS Barnsley CCG,28/02/2019,Clinical&Medical-Othe Public Sector,Mental Health Services - S117 Mental Health,BARNSLEY METROPOLITAN BOROUGH COUNCIL,26162684,"-50,107.14"
Department of Health,NHS Barnsley CCG,28/02/2019,Clinical&Medical-Othe Public Sector,Mental Health Services - S117 Mental Health,BARNSLEY METROPOLITAN BOROUGH COUNCIL,26162747,"-90,270.00"
Department of Health,NHS Barnsley CCG,28/02/2019,Clinical&Medical-Othe Public Sector,Mental Health Services - S117 Mental Health,BARNSLEY METROPOLITAN BOROUGH COUNCIL,26162773,"-30,038.61"
Department of Health,NHS Barnsley CCG,28/02/2019,Clinical&Medical-Othe Public Sector,Mental Health Services - S117 Mental Health,BARNSLEY METROPOLITAN BOROUGH COUNCIL,26162784,"-30,613.51"
Department of Health,NHS Barnsley CCG,28/02/2019,Clinical&Medical-Othe Public Sector,Mental Health Services - S117 Mental Health,BARNSLEY METROPOLITAN BOROUGH COUNCIL,26162872,"74,100.00"
Department of Health,NHS Barnsley CCG,28/02/2019,Clinical&Medical-Othe Public Sector,Mental Health Services - S117 Mental Health,BARNSLEY METROPOLITAN BOROUGH COUNCIL,26162891,"25,629.64"
Department of Health,NHS Barnsley CCG,28/02/2019,Clinical&Medical-Othe Public Sector,Mental Health Services - S117 Mental Health,BARNSLEY METROPOLITAN BOROUGH COUNCIL,26162894,"61,766.04"
Department of Health,NHS Barnsley CCG,28/02/2019,Clinical&Medical-Othe Public Sector,Mental Health Services - S117 Mental Health,BARNSLEY METROPOLITAN BOROUGH COUNCIL,26162895,"31,473.86"
Department of Health,NHS Barnsley CCG,28/02/2019,Clinical&Medical-Othe Public Sector,Mental Health Services - S117 Mental Health,BARNSLEY METROPOLITAN BOROUGH COUNCIL,26162898,"34,132.98"
Department of Health,NHS Barnsley CCG,28/02/2019,Clinical&Medical-Othe Public Sector,Mental Health Services - S117 Mental Health,BARNSLEY METROPOLITAN BOROUGH COUNCIL,26162965,"45,135.00"
Department of Health,NHS Barnsley CCG,28/02/2019,Cont Care- Palliative Care,CHC AD FULL FUND PERS HLTH BUD,BARNSLEY METROPOLITAN BOROUGH COUNCIL,26166406,"1,161.60"
Department of Health,NHS Barnsley CCG,28/02/2019,Cont Care- Palliative Care,CHC ADULT FULLY FUNDED,BARNSLEY METROPOLITAN BOROUGH COUNCIL,26166406,"16,000.00"
Department of Health,NHS Barnsley CCG,28/02/2019,Cont Care-Interim Funding(Pre Panel),CHC ADULT FULLY FUNDED,BARNSLEY METROPOLITAN BOROUGH COUNCIL,26166406,"15,817.35"
Department of Health,NHS Barnsley CCG,28/02/2019,Cont Care-Learning Disab(65+),CHC AD JNT FUND PERS HLTH BUD,BARNSLEY METROPOLITAN BOROUGH COUNCIL,26166406,"1,852.35"
Department of Health,NHS Barnsley CCG,28/02/2019,Cont Care-Learning Disab(65+),CHC ADULT FULLY FUNDED,BARNSLEY METROPOLITAN BOROUGH COUNCIL,26166406,"23,546.35"
Department of Health,NHS Barnsley CCG,28/02/2019,Cont Care-Learning Disab(65+),CHC ADULT JOINT FUNDED,BARNSLEY METROPOLITAN BOROUGH COUNCIL,26166406,"7,480.39"
Department of Health,NHS Barnsley CCG,28/02/2019,Cont Care-Learning Disab(<65),CHC AD FULL FUND PERS HLTH BUD,BARNSLEY METROPOLITAN BOROUGH COUNCIL,26166406,"185,198.49"
Department of Health,NHS Barnsley CCG,28/02/2019,Cont Care-Learning Disab(<65),CHC AD JNT FUND PERS HLTH BUD,BARNSLEY METROPOLITAN BOROUGH COUNCIL,26166406,"118,351.86"
Department of Health,NHS Barnsley CCG,28/02/2019,Cont Care-Learning Disab(<65),CHC ADULT FULLY FUNDED,BARNSLEY METROPOLITAN BOROUGH COUNCIL,26166406,"27,478.51"
Department of Health,NHS Barnsley CCG,28/02/2019,Cont Care-Learning Disab(<65),CHC ADULT JOINT FUNDED,BARNSLEY METROPOLITAN BOROUGH COUNCIL,26166406,"74,469.39"
Department of Health,NHS Barnsley CCG,28/02/2019,Cont Care-Mental Health (65+),CHC AD FULL FUND PERS HLTH BUD,BARNSLEY METROPOLITAN BOROUGH COUNCIL,26166406,"16,727.78"
Department of Health,NHS Barnsley CCG,28/02/2019,Cont Care-Mental Health (<65),CHC AD FULL FUND PERS HLTH BUD,BARNSLEY METROPOLITAN BOROUGH COUNCIL,26166406,"2,773.85"
Department of Health,NHS Barnsley CCG,28/02/2019,Cont Care-Physical Disab (65+),CHC AD FULL FUND PERS HLTH BUD,BARNSLEY METROPOLITAN BOROUGH COUNCIL,26166406,"45,904.75"
Department of Health,NHS Barnsley CCG,28/02/2019,Cont Care-Physical Disab (65+),CHC AD JNT FUND PERS HLTH BUD,BARNSLEY METROPOLITAN BOROUGH COUNCIL,26166406,"6,268.16"
Department of Health,NHS Barnsley CCG,28/02/2019,Cont Care-Physical Disab (<65),CHC AD FULL FUND PERS HLTH BUD,BARNSLEY METROPOLITAN BOROUGH COUNCIL,26166406,"235,875.05"
Department of Health,NHS Barnsley CCG,28/02/2019,Cont Care-Physical Disab (<65),CHC AD JNT FUND PERS HLTH BUD,BARNSLEY METROPOLITAN BOROUGH COUNCIL,26166406,"26,316.96"
Department of Health,NHS Barnsley CCG,28/02/2019,Clinical&Medical-Othe Public Sector,CHILD AND ADOLESCENT MENTAL HEALTH,BARNSLEY METROPOLITAN BOROUGH COUNCIL,26182671,"20,542.00"
Department of Health,NHS Barnsley CCG,28/02/2019,Clinical&Medical-Othe Public Sector,COMMISSIONING - NON ACUTE,BARNSLEY METROPOLITAN BOROUGH COUNCIL,26182671,"363,448.00"
Department of Health,NHS Barnsley CCG,28/02/2019,Clinical&Medical-Othe Public Sector,COMMUNITY SERVICES,BARNSLEY METROPOLITAN BOROUGH COUNCIL,26182671,"16,083.00"
Department of Health,NHS Barnsley CCG,28/02/2019,Clinical&Medical-Othe Public Sector,MENTAL HEALTH SERVICES - ADVOCACY,BARNSLEY METROPOLITAN BOROUGH COUNCIL,26182671,"118,600.00"
Department of Health,NHS Barnsley CCG,28/02/2019,Expenditure on Drugs Action Team,MENTAL HEALTH SERVICES - SPECIALIST SERVICES,BARNSLEY METROPOLITAN BOROUGH COUNCIL,26182671,"500,000.00"
Department of Health,NHS Barnsley CCG,28/02/2019,Local AuthorityRevenue-Non-Contract,COMMUNITY SERVICES,BARNSLEY METROPOLITAN BOROUGH COUNCIL,26182671,"-4,875.00"
Department of Health,NHS Barnsley CCG,28/02/2019,Participation Fees,COMMUNITY SERVICES,BARNSLEY METROPOLITAN BOROUGH COUNCIL,26182671,"141,000.00"
Department of Health,NHS Barnsley CCG,28/02/2019,Services From Local Authorities,SAFEGUARDING,BARNSLEY METROPOLITAN BOROUGH COUNCIL,26182671,"81,952.00"
Department of Health,NHS Barnsley CCG,28/02/2019,Soc Care-Other Soc Care,COMMUNITY SERVICES,BARNSLEY METROPOLITAN BOROUGH COUNCIL,26182671,"4,136,166.00"
Department of Health,NHS Barnsley CCG,28/02/2019,Soc Care-Re-ablement services,COMMUNITY SERVICES,BARNSLEY METROPOLITAN BOROUGH COUNCIL,26182671,"193,750.00"
Department of Health,NHS Barnsley CCG,28/02/2019,Social Care-Res Long Stay Exp,LONG TERM CONDITIONS,BARNSLEY METROPOLITAN BOROUGH COUNCIL,26182671,"426,250.00"
Department of Health,NHS Barnsley CCG,28/02/2019,Social Care-Res Short Stay Exp,COMMUNITY SERVICES,BARNSLEY METROPOLITAN BOROUGH COUNCIL,26182671,"67,500.00"
Department of Health,NHS Barnsley CCG,28/02/2019,C&M-GMS Global Sum,PRC DELEGATED CO-COMMISSIONING,NHS BARNSLEY CCG GP PRACTICE,26116972,"92,983.57"
Department of Health,NHS Barnsley CCG,28/02/2019,C&M-GMS PCO Other,PRC DELEGATED CO-COMMISSIONING,NHS BARNSLEY CCG GP PRACTICE,26116972,761.64
Department of Health,NHS Barnsley CCG,28/02/2019,C&M-GMS Prem Actual Rent,PRC DELEGATED CO-COMMISSIONING,NHS BARNSLEY CCG GP PRACTICE,26116972,"12,500.00"
Department of Health,NHS Barnsley CCG,28/02/2019,C&M-GMS Prem Healthcentre Rent,PRC DELEGATED CO-COMMISSIONING,NHS BARNSLEY CCG GP PRACTICE,26116972,"3,197.91"
Department of Health,NHS Barnsley CCG,28/02/2019,C&M-GMS Prem Notional Rent,PRC DELEGATED CO-COMMISSIONING,NHS BARNSLEY CCG GP PRACTICE,26116972,"1,572.92"
Department of Health,NHS Barnsley CCG,28/02/2019,C&M-GMS QOF Aspiration,PRC DELEGATED CO-COMMISSIONING,NHS BARNSLEY CCG GP PRACTICE,26116972,"9,471.17"
Department of Health,NHS Barnsley CCG,28/02/2019,C&M-GMS Voluntary Levy,PRC DELEGATED CO-COMMISSIONING,NHS BARNSLEY CCG GP PRACTICE,26116972,505.32
Department of Health,NHS Barnsley CCG,28/02/2019,Clinical&Medical-Commercial Sector,ACUTE COMMISSIONING,CLAREMONT HOSPITAL,25907126,"53,719.00"
Department of Health,NHS Barnsley CCG,28/02/2019,Voids and Subsidies,RECHARGES NHS PROPERTY SERVICES LTD,COMMUNITY HEALTH PARTNERSHIPS LTD,25835432,"52,152.13"
Department of Health,NHS Barnsley CCG,28/02/2019,Voids and Subsidies,RECHARGES NHS PROPERTY SERVICES LTD,COMMUNITY HEALTH PARTNERSHIPS LTD,25856787,"52,152.13"
Department of Health,NHS Barnsley CCG,28/02/2019,Cont Care- Palliative Care,CHC ADULT FULLY FUNDED,CRAEGMOOR HEALTHCARE CO LTD,26182589,"39,744.00"
Department of Health,NHS Barnsley CCG,28/02/2019,Soc Care-Bed-Based Int Care Servs,INTERMEDIATE CARE,CROWN CARE (IV) LTD,25856781,"26,792.86"
Department of Health,NHS Barnsley CCG,28/02/2019,Clinical&Medical-Commercial Sector,LEARNING DIFFICULTIES,DANSHELL HEALTHCARE LTD,26022523,"26,784.00"
Department of Health,NHS Barnsley CCG,28/02/2019,C&M-GMS Global Sum,PRC DELEGATED CO-COMMISSIONING,NHS BARNSLEY CCG GP PRACTICE,26116835,"84,455.26"
Department of Health,NHS Barnsley CCG,28/02/2019,C&M-GMS Prem Healthcentre Rent,PRC DELEGATED CO-COMMISSIONING,NHS BARNSLEY CCG GP PRACTICE,26116835,"26,362.03"
Department of Health,NHS Barnsley CCG,28/02/2019,C&M-GMS QOF Aspiration,PRC DELEGATED CO-COMMISSIONING,NHS BARNSLEY CCG GP PRACTICE,26116835,"7,981.53"
Department of Health,NHS Barnsley CCG,28/02/2019,C&M-GMS Voluntary Levy,PRC DELEGATED CO-COMMISSIONING,NHS BARNSLEY CCG GP PRACTICE,26116835,175.62
Department of Health,NHS Barnsley CCG,28/02/2019,Cont Care-Physical Disab (<65),CHC ADULT FULLY FUNDED,NHS BARNSLEY CCG GP PRACTICE,26162834,"30,146.72"
Department of Health,NHS Barnsley CCG,31/01/2019,Hcare Srv Rec Fdtn Trust-CQUIN,ACUTE COMMISSIONING,DONCASTER AND BASSETLAW HOSPITALS NHS FOUNDATION TRUST,25771308,"6,094.00"
Department of Health,NHS Barnsley CCG,31/01/2019,Hcare Srv Rec Fdtn Trust-Contract Baseline,ACUTE COMMISSIONING,DONCASTER AND BASSETLAW HOSPITALS NHS FOUNDATION TRUST,25771308,"522,583.00"
Department of Health,NHS Barnsley CCG,28/02/2019,C&M-PMS Contract Value,PRC DELEGATED CO-COMMISSIONING,NHS BARNSLEY CCG GP PRACTICE,25925211,"91,233.46"
Department of Health,NHS Barnsley CCG,28/02/2019,C&M-PMS DES Minor Surgery,PRC DELEGATED CO-COMMISSIONING,NHS BARNSLEY CCG GP PRACTICE,25925211,"2,685.06"
Department of Health,NHS Barnsley CCG,28/02/2019,C&M-PMS Out of Hours Opt Outs,PRC DELEGATED CO-COMMISSIONING,NHS BARNSLEY CCG GP PRACTICE,25925211,31.98
Department of Health,NHS Barnsley CCG,28/02/2019,C&M-PMS Prem Healthcentre Rent,PRC DELEGATED CO-COMMISSIONING,NHS BARNSLEY CCG GP PRACTICE,25925211,"20,733.65"
Department of Health,NHS Barnsley CCG,28/02/2019,C&M-PMS Prem Notional Rent,PRC DELEGATED CO-COMMISSIONING,NHS BARNSLEY CCG GP PRACTICE,25925211,"1,987.50"
Department of Health,NHS Barnsley CCG,28/02/2019,C&M-PMS Prem Rates,PRC DELEGATED CO-COMMISSIONING,NHS BARNSLEY CCG GP PRACTICE,25925211,345.00
Department of Health,NHS Barnsley CCG,28/02/2019,C&M-PMS Prem Water Rates,PRC DELEGATED CO-COMMISSIONING,NHS BARNSLEY CCG GP PRACTICE,25925211,577.48
Department of Health,NHS Barnsley CCG,28/02/2019,C&M-PMS QOF Aspiration,PRC DELEGATED CO-COMMISSIONING,NHS BARNSLEY CCG GP PRACTICE,25925211,"10,374.08"
Department of Health,NHS Barnsley CCG,28/02/2019,C&M-PMS Contract Value,PRC DELEGATED CO-COMMISSIONING,NHS BARNSLEY CCG GP PRACTICE,25925224,"54,876.97"
Department of Health,NHS Barnsley CCG,28/02/2019,C&M-PMS DES Learn Dsblty Hlth Chk,PRC DELEGATED CO-COMMISSIONING,NHS BARNSLEY CCG GP PRACTICE,25925224,"2,940.00"
Department of Health,NHS Barnsley CCG,28/02/2019,C&M-PMS DES Minor Surgery,PRC DELEGATED CO-COMMISSIONING,NHS BARNSLEY CCG GP PRACTICE,25925224,"1,406.46"
Department of Health,NHS Barnsley CCG,28/02/2019,C&M-PMS Prem Healthcentre Rent,PRC DELEGATED CO-COMMISSIONING,NHS BARNSLEY CCG GP PRACTICE,25925224,"21,355.85"
Department of Health,NHS Barnsley CCG,28/02/2019,C&M-PMS QOF Aspiration,PRC DELEGATED CO-COMMISSIONING,NHS BARNSLEY CCG GP PRACTICE,25925224,"5,139.74"
Department of Health,NHS Barnsley CCG,28/02/2019,C&M-GMS DES Learn Dsblty Hlth Chk,PRC DELEGATED CO-COMMISSIONING,NHS BARNSLEY CCG GP PRACTICE,26116837,140.00
Department of Health,NHS Barnsley CCG,28/02/2019,C&M-GMS Global Sum,PRC DELEGATED CO-COMMISSIONING,NHS BARNSLEY CCG GP PRACTICE,26116837,"75,773.53"
Department of Health,NHS Barnsley CCG,28/02/2019,C&M-GMS PCO Other,PRC DELEGATED CO-COMMISSIONING,NHS BARNSLEY CCG GP PRACTICE,26116837,679.68
Department of Health,NHS Barnsley CCG,28/02/2019,C&M-GMS Prem Notional Rent,PRC DELEGATED CO-COMMISSIONING,NHS BARNSLEY CCG GP PRACTICE,26116837,"4,653.91"
Department of Health,NHS Barnsley CCG,28/02/2019,C&M-GMS QOF Aspiration,PRC DELEGATED CO-COMMISSIONING,NHS BARNSLEY CCG GP PRACTICE,26116837,"7,953.33"
Department of Health,NHS Barnsley CCG,28/02/2019,C&M-GMS Voluntary Levy,PRC DELEGATED CO-COMMISSIONING,NHS BARNSLEY CCG GP PRACTICE,26116837,116.45
Department of Health,NHS Barnsley CCG,28/02/2019,C&M-PMS Contract Value,PRC DELEGATED CO-COMMISSIONING,NHS BARNSLEY CCG GP PRACTICE,25925231,-174.66
Department of Health,NHS Barnsley CCG,28/02/2019,C&M-PMS GP Statutory Levy,PRC DELEGATED CO-COMMISSIONING,NHS BARNSLEY CCG GP PRACTICE,25925231,-570.53
Department of Health,NHS Barnsley CCG,28/02/2019,C&M-PMS Out of Hours Opt Outs,PRC DELEGATED CO-COMMISSIONING,NHS BARNSLEY CCG GP PRACTICE,25925231,"-6,397.77"
Department of Health,NHS Barnsley CCG,28/02/2019,C&M-PMS Voluntary Levy,PRC DELEGATED CO-COMMISSIONING,NHS BARNSLEY CCG GP PRACTICE,25925231,-99.84
Department of Health,NHS Barnsley CCG,28/02/2019,ME - PMS TPS Added Years Adj EEs,PRC DELEGATED CO-COMMISSIONING,NHS BARNSLEY CCG GP PRACTICE,25925231,-453.29
Department of Health,NHS Barnsley CCG,28/02/2019,ME-PMS GP Pension EEs-PMS,PRC DELEGATED CO-COMMISSIONING,NHS BARNSLEY CCG GP PRACTICE,25925231,"-12,430.96"
Department of Health,NHS Barnsley CCG,28/02/2019,ME-PMS GP Pension ERs Adjs - PMS,PRC DELEGATED CO-COMMISSIONING,NHS BARNSLEY CCG GP PRACTICE,25925231,"-13,247.55"
Department of Health,NHS Barnsley CCG,28/02/2019,C&M-PMS Contract Value,PRC DELEGATED CO-COMMISSIONING,NHS BARNSLEY CCG GP PRACTICE,25925234,"135,695.82"
Department of Health,NHS Barnsley CCG,28/02/2019,C&M-PMS DES Learn Dsblty Hlth Chk,PRC DELEGATED CO-COMMISSIONING,NHS BARNSLEY CCG GP PRACTICE,25925234,700.00
Department of Health,NHS Barnsley CCG,28/02/2019,C&M-PMS DES Minor Surgery,PRC DELEGATED CO-COMMISSIONING,NHS BARNSLEY CCG GP PRACTICE,25925234,"9,802.60"
Department of Health,NHS Barnsley CCG,28/02/2019,C&M-PMS Out of Hours Opt Outs,PRC DELEGATED CO-COMMISSIONING,NHS BARNSLEY CCG GP PRACTICE,25925234,8.58
Department of Health,NHS Barnsley CCG,28/02/2019,C&M-PMS PCO Locum Adop/Pat/Mat,PRC DELEGATED CO-COMMISSIONING,NHS BARNSLEY CCG GP PRACTICE,25925234,"5,266.06"
Department of Health,NHS Barnsley CCG,28/02/2019,C&M-PMS Prem Notional Rent,PRC DELEGATED CO-COMMISSIONING,NHS BARNSLEY CCG GP PRACTICE,25925234,"6,333.33"
Department of Health,NHS Barnsley CCG,28/02/2019,C&M-PMS Prem Rates,PRC DELEGATED CO-COMMISSIONING,NHS BARNSLEY CCG GP PRACTICE,25925234,"2,075.00"
Department of Health,NHS Barnsley CCG,28/02/2019,C&M-PMS QOF Aspiration,PRC DELEGATED CO-COMMISSIONING,NHS BARNSLEY CCG GP PRACTICE,25925234,"13,531.04"
Department of Health,NHS Barnsley CCG,28/02/2019,C&M-PMS Cost of Drugs -Dispensing,LOCAL ENHANCED SERVICES,NHS BARNSLEY CCG GP PRACTICE,26141072,"-82,841.28"
Department of Health,NHS Barnsley CCG,28/02/2019,C&M-PMS Prsc Chrgs Cll&Rmttd by GPs,PRC DELEGATED CO-COMMISSIONING,NHS BARNSLEY CCG GP PRACTICE,26141072,"-5,174.40"
Department of Health,NHS Barnsley CCG,28/02/2019,C&M-PMS Cost of Drugs -Dispensing,LOCAL ENHANCED SERVICES,NHS BARNSLEY CCG GP PRACTICE,26141073,"145,949.96"
Department of Health,NHS Barnsley CCG,28/02/2019,C&M-PMS Prof fees Dispensing,PRC DELEGATED CO-COMMISSIONING,NHS BARNSLEY CCG GP PRACTICE,26141073,"30,757.90"
Department of Health,NHS Barnsley CCG,28/02/2019,C&M-PMS Prsc Chrgs Cll&Rmttd by GPs,LOCAL ENHANCED SERVICES,NHS BARNSLEY CCG GP PRACTICE,26141073,"5,174.40"
Department of Health,NHS Barnsley CCG,28/02/2019,C&M-GMS Global Sum,PRC DELEGATED CO-COMMISSIONING,NHS BARNSLEY CCG GP PRACTICE,26116974,"23,175.09"
Department of Health,NHS Barnsley CCG,28/02/2019,C&M-GMS MPIG Correction Factor,PRC DELEGATED CO-COMMISSIONING,NHS BARNSLEY CCG GP PRACTICE,26116974,404.79
Department of Health,NHS Barnsley CCG,28/02/2019,C&M-GMS Prem Healthcentre Rent,PRC DELEGATED CO-COMMISSIONING,NHS BARNSLEY CCG GP PRACTICE,26116974,"1,473.37"
Department of Health,NHS Barnsley CCG,28/02/2019,C&M-GMS QOF Aspiration,PRC DELEGATED CO-COMMISSIONING,NHS BARNSLEY CCG GP PRACTICE,26116974,"2,173.13"
Department of Health,NHS Barnsley CCG,28/02/2019,C&M-GMS Voluntary Levy,PRC DELEGATED CO-COMMISSIONING,NHS BARNSLEY CCG GP PRACTICE,26116974,132.43
Department of Health,NHS Barnsley CCG,28/02/2019,C&M-GMS Global Sum,PRC DELEGATED CO-COMMISSIONING,NHS BARNSLEY CCG GP PRACTICE,26116839,"40,771.83"
Department of Health,NHS Barnsley CCG,28/02/2019,C&M-GMS PCO Other,PRC DELEGATED CO-COMMISSIONING,NHS BARNSLEY CCG GP PRACTICE,26116839,335.50
Department of Health,NHS Barnsley CCG,28/02/2019,C&M-GMS Prem Actual Rent,PRC DELEGATED CO-COMMISSIONING,NHS BARNSLEY CCG GP PRACTICE,26116839,227.09
Department of Health,NHS Barnsley CCG,28/02/2019,C&M-GMS Prem Notional Rent,PRC DELEGATED CO-COMMISSIONING,NHS BARNSLEY CCG GP PRACTICE,26116839,"1,681.25"
Department of Health,NHS Barnsley CCG,28/02/2019,C&M-GMS Prem Rates,PRC DELEGATED CO-COMMISSIONING,NHS BARNSLEY CCG GP PRACTICE,26116839,"1,161.00"
Department of Health,NHS Barnsley CCG,28/02/2019,C&M-GMS QOF Aspiration,PRC DELEGATED CO-COMMISSIONING,NHS BARNSLEY CCG GP PRACTICE,26116839,"3,963.16"
Department of Health,NHS Barnsley CCG,28/02/2019,C&M-GMS Voluntary Levy,PRC DELEGATED CO-COMMISSIONING,NHS BARNSLEY CCG GP PRACTICE,26116839,319.30
Department of Health,NHS Barnsley CCG,28/02/2019,C&M-PMS Contract Value,PRC DELEGATED CO-COMMISSIONING,NHS BARNSLEY CCG GP PRACTICE,25925229,"39,568.20"
Department of Health,NHS Barnsley CCG,28/02/2019,C&M-PMS DES Minor Surgery,PRC DELEGATED CO-COMMISSIONING,NHS BARNSLEY CCG GP PRACTICE,25925229,"1,449.08"
Department of Health,NHS Barnsley CCG,28/02/2019,C&M-PMS Out of Hours Opt Outs,PRC DELEGATED CO-COMMISSIONING,NHS BARNSLEY CCG GP PRACTICE,25925229,26.84
Department of Health,NHS Barnsley CCG,28/02/2019,C&M-PMS Prem Healthcentre Rent,PRC DELEGATED CO-COMMISSIONING,NHS BARNSLEY CCG GP PRACTICE,25925229,"3,512.46"
Department of Health,NHS Barnsley CCG,28/02/2019,C&M-PMS Prem Notional Rent,PRC DELEGATED CO-COMMISSIONING,NHS BARNSLEY CCG GP PRACTICE,25925229,"9,433.34"
Department of Health,NHS Barnsley CCG,28/02/2019,C&M-PMS Prem Rates,PRC DELEGATED CO-COMMISSIONING,NHS BARNSLEY CCG GP PRACTICE,25925229,"1,246.00"
Department of Health,NHS Barnsley CCG,28/02/2019,C&M-PMS QOF Aspiration,PRC DELEGATED CO-COMMISSIONING,NHS BARNSLEY CCG GP PRACTICE,25925229,"2,399.58"
Department of Health,NHS Barnsley CCG,28/02/2019,C&M-GMS DES Learn Dsblty Hlth Chk,PRC DELEGATED CO-COMMISSIONING,NHS BARNSLEY CCG GP PRACTICE,26116845,420.00
Department of Health,NHS Barnsley CCG,28/02/2019,C&M-GMS Global Sum,PRC DELEGATED CO-COMMISSIONING,NHS BARNSLEY CCG GP PRACTICE,26116845,"108,448.88"
Department of Health,NHS Barnsley CCG,28/02/2019,C&M-GMS Prem Notional Rent,PRC DELEGATED CO-COMMISSIONING,NHS BARNSLEY CCG GP PRACTICE,26116845,"6,333.33"
Department of Health,NHS Barnsley CCG,28/02/2019,C&M-GMS Prem Water Rates,PRC DELEGATED CO-COMMISSIONING,NHS BARNSLEY CCG GP PRACTICE,26116845,428.54
Department of Health,NHS Barnsley CCG,28/02/2019,C&M-GMS QOF Aspiration,PRC DELEGATED CO-COMMISSIONING,NHS BARNSLEY CCG GP PRACTICE,26116845,"11,289.06"
Department of Health,NHS Barnsley CCG,28/02/2019,C&M-GMS Voluntary Levy,PRC DELEGATED CO-COMMISSIONING,NHS BARNSLEY CCG GP PRACTICE,26116845,353.28
Department of Health,NHS Barnsley CCG,28/02/2019,C&M-GMS Global Sum,PRC DELEGATED CO-COMMISSIONING,NHS BARNSLEY CCG GP PRACTICE,26116841,"96,768.03"
Department of Health,NHS Barnsley CCG,28/02/2019,C&M-GMS Prem Notional Rent,PRC DELEGATED CO-COMMISSIONING,NHS BARNSLEY CCG GP PRACTICE,26116841,"13,500.00"
Department of Health,NHS Barnsley CCG,28/02/2019,C&M-GMS QOF Aspiration,PRC DELEGATED CO-COMMISSIONING,NHS BARNSLEY CCG GP PRACTICE,26116841,"9,725.72"
Department of Health,NHS Barnsley CCG,28/02/2019,C&M-GMS Voluntary Levy,PRC DELEGATED CO-COMMISSIONING,NHS BARNSLEY CCG GP PRACTICE,26116841,1.67
Department of Health,NHS Barnsley CCG,28/02/2019,C&M-GMS Global Sum,PRC DELEGATED CO-COMMISSIONING,NHS BARNSLEY CCG GP PRACTICE,26116843,"94,625.46"
Department of Health,NHS Barnsley CCG,28/02/2019,C&M-GMS PCO Other,PRC DELEGATED CO-COMMISSIONING,NHS BARNSLEY CCG GP PRACTICE,26116843,"6,739.00"
Department of Health,NHS Barnsley CCG,28/02/2019,C&M-GMS Prem Healthcentre Rent,PRC DELEGATED CO-COMMISSIONING,NHS BARNSLEY CCG GP PRACTICE,26116843,"38,544.19"
Department of Health,NHS Barnsley CCG,28/02/2019,C&M-GMS QOF Aspiration,PRC DELEGATED CO-COMMISSIONING,NHS BARNSLEY CCG GP PRACTICE,26116843,"8,618.60"
Department of Health,NHS Barnsley CCG,28/02/2019,C&M-GMS Voluntary Levy,PRC DELEGATED CO-COMMISSIONING,NHS BARNSLEY CCG GP PRACTICE,26116843,515.94
Department of Health,NHS Barnsley CCG,28/02/2019,ME-GMS GP Pension EEs Adjustments,PRC DELEGATED CO-COMMISSIONING,NHS BARNSLEY CCG GP PRACTICE,26116843,412.11
Department of Health,NHS Barnsley CCG,28/02/2019,C&M-GMS Global Sum,PRC DELEGATED CO-COMMISSIONING,NHS BARNSLEY CCG GP PRACTICE,26116847,"80,939.97"
Department of Health,NHS Barnsley CCG,28/02/2019,C&M-GMS PCO Other,PRC DELEGATED CO-COMMISSIONING,NHS BARNSLEY CCG GP PRACTICE,26116847,711.11
Department of Health,NHS Barnsley CCG,28/02/2019,C&M-GMS QOF Aspiration,PRC DELEGATED CO-COMMISSIONING,NHS BARNSLEY CCG GP PRACTICE,26116847,"10,371.04"
Department of Health,NHS Barnsley CCG,28/02/2019,C&M-GMS Voluntary Levy,PRC DELEGATED CO-COMMISSIONING,NHS BARNSLEY CCG GP PRACTICE,26116847,334.31
Department of Health,NHS Barnsley CCG,28/02/2019,C&M-PMS DES Extended Hours Access,PRC DELEGATED CO-COMMISSIONING,NHS BARNSLEY CCG GP PRACTICE,25925237,-540.75
Department of Health,NHS Barnsley CCG,28/02/2019,C&M-PMS GP Statutory Levy,PRC DELEGATED CO-COMMISSIONING,NHS BARNSLEY CCG GP PRACTICE,25925237,-579.90
Department of Health,NHS Barnsley CCG,28/02/2019,C&M-PMS Out of Hours Opt Outs,PRC DELEGATED CO-COMMISSIONING,NHS BARNSLEY CCG GP PRACTICE,25925237,"-7,096.73"
Department of Health,NHS Barnsley CCG,28/02/2019,C&M-PMS Voluntary Levy,PRC DELEGATED CO-COMMISSIONING,NHS BARNSLEY CCG GP PRACTICE,25925237,-101.48
Department of Health,NHS Barnsley CCG,28/02/2019,ME - PMS TPS Added Years Adj EEs,PRC DELEGATED CO-COMMISSIONING,NHS BARNSLEY CCG GP PRACTICE,25925237,-346.67
Department of Health,NHS Barnsley CCG,28/02/2019,ME-PMS GP Pension EEs-PMS,PRC DELEGATED CO-COMMISSIONING,NHS BARNSLEY CCG GP PRACTICE,25925237,"-9,242.31"
Department of Health,NHS Barnsley CCG,28/02/2019,ME-PMS GP Pension ERs Adjs - PMS,PRC DELEGATED CO-COMMISSIONING,NHS BARNSLEY CCG GP PRACTICE,25925237,"-9,824.53"
Department of Health,NHS Barnsley CCG,28/02/2019,C&M-PMS Contract Value,PRC DELEGATED CO-COMMISSIONING,NHS BARNSLEY CCG GP PRACTICE,25925240,"146,095.32"
Department of Health,NHS Barnsley CCG,28/02/2019,C&M-PMS DES Minor Surgery,PRC DELEGATED CO-COMMISSIONING,NHS BARNSLEY CCG GP PRACTICE,25925240,"8,907.58"
Department of Health,NHS Barnsley CCG,28/02/2019,C&M-PMS PCO Locum Adop/Pat/Mat,PRC DELEGATED CO-COMMISSIONING,NHS BARNSLEY CCG GP PRACTICE,25925240,"13,846.15"
Department of Health,NHS Barnsley CCG,28/02/2019,C&M-PMS Prem Notional Rent,PRC DELEGATED CO-COMMISSIONING,NHS BARNSLEY CCG GP PRACTICE,25925240,"11,741.66"
Department of Health,NHS Barnsley CCG,28/02/2019,C&M-PMS Prem Rates,PRC DELEGATED CO-COMMISSIONING,NHS BARNSLEY CCG GP PRACTICE,25925240,"1,205.00"
Department of Health,NHS Barnsley CCG,28/02/2019,C&M-PMS QOF Aspiration,PRC DELEGATED CO-COMMISSIONING,NHS BARNSLEY CCG GP PRACTICE,25925240,"14,085.62"
Department of Health,NHS Barnsley CCG,28/02/2019,C&M-PMS GP Statutory Levy,PRC DELEGATED CO-COMMISSIONING,NHS BARNSLEY CCG GP PRACTICE,25925243,-395.03
Department of Health,NHS Barnsley CCG,28/02/2019,C&M-PMS Out of Hours Opt Outs,PRC DELEGATED CO-COMMISSIONING,NHS BARNSLEY CCG GP PRACTICE,25925243,"-4,969.37"
Department of Health,NHS Barnsley CCG,28/02/2019,C&M-PMS Prem Rates,PRC DELEGATED CO-COMMISSIONING,NHS BARNSLEY CCG GP PRACTICE,25925243,-430.60
Department of Health,NHS Barnsley CCG,28/02/2019,C&M-PMS Voluntary Levy,PRC DELEGATED CO-COMMISSIONING,NHS BARNSLEY CCG GP PRACTICE,25925243,-69.13
Department of Health,NHS Barnsley CCG,28/02/2019,ME-PMS GP Pension EEs-PMS,PRC DELEGATED CO-COMMISSIONING,NHS BARNSLEY CCG GP PRACTICE,25925243,"-10,470.83"
Department of Health,NHS Barnsley CCG,28/02/2019,ME-PMS GP Pension ERs Adjs - PMS,PRC DELEGATED CO-COMMISSIONING,NHS BARNSLEY CCG GP PRACTICE,25925243,"-10,808.95"
Department of Health,NHS Barnsley CCG,28/02/2019,C&M-PMS Contract Value,PRC DELEGATED CO-COMMISSIONING,NHS BARNSLEY CCG GP PRACTICE,25925246,"101,162.88"
Department of Health,NHS Barnsley CCG,28/02/2019,C&M-PMS DES Learn Dsblty Hlth Chk,PRC DELEGATED CO-COMMISSIONING,NHS BARNSLEY CCG GP PRACTICE,25925246,840.00
Department of Health,NHS Barnsley CCG,28/02/2019,C&M-PMS DES Minor Surgery,PRC DELEGATED CO-COMMISSIONING,NHS BARNSLEY CCG GP PRACTICE,25925246,"10,271.42"
Department of Health,NHS Barnsley CCG,28/02/2019,C&M-PMS PCO Other,PRC DELEGATED CO-COMMISSIONING,NHS BARNSLEY CCG GP PRACTICE,25925246,787.44
Department of Health,NHS Barnsley CCG,28/02/2019,C&M-PMS Prem Actual Rent,PRC DELEGATED CO-COMMISSIONING,NHS BARNSLEY CCG GP PRACTICE,25925246,"12,708.33"
Department of Health,NHS Barnsley CCG,28/02/2019,C&M-PMS Prem Rates,PRC DELEGATED CO-COMMISSIONING,NHS BARNSLEY CCG GP PRACTICE,25925246,"3,596.20"
Department of Health,NHS Barnsley CCG,28/02/2019,C&M-PMS QOF Aspiration,PRC DELEGATED CO-COMMISSIONING,NHS BARNSLEY CCG GP PRACTICE,25925246,"10,432.84"
Department of Health,NHS Barnsley CCG,28/02/2019,C&M-PMS Contract Value,PRC DELEGATED CO-COMMISSIONING,NHS BARNSLEY CCG GP PRACTICE,25925252,"89,851.92"
Department of Health,NHS Barnsley CCG,28/02/2019,C&M-PMS DES Minor Surgery,PRC DELEGATED CO-COMMISSIONING,NHS BARNSLEY CCG GP PRACTICE,25925252,"3,324.36"
Department of Health,NHS Barnsley CCG,28/02/2019,C&M-PMS Prem Actual Rent,PRC DELEGATED CO-COMMISSIONING,NHS BARNSLEY CCG GP PRACTICE,25925252,"8,566.67"
Department of Health,NHS Barnsley CCG,28/02/2019,C&M-PMS Prem Rates,PRC DELEGATED CO-COMMISSIONING,NHS BARNSLEY CCG GP PRACTICE,25925252,"1,865.00"
Department of Health,NHS Barnsley CCG,28/02/2019,C&M-PMS QOF Aspiration,PRC DELEGATED CO-COMMISSIONING,NHS BARNSLEY CCG GP PRACTICE,25925252,"6,865.66"
Department of Health,NHS Barnsley CCG,28/02/2019,C&M-GMS Global Sum,PRC DELEGATED CO-COMMISSIONING,NHS BARNSLEY CCG GP PRACTICE,26116849,"57,143.58"
Department of Health,NHS Barnsley CCG,28/02/2019,C&M-GMS Prem Healthcentre Rent,PRC DELEGATED CO-COMMISSIONING,NHS BARNSLEY CCG GP PRACTICE,26116849,"23,962.78"
Department of Health,NHS Barnsley CCG,28/02/2019,C&M-GMS QOF Aspiration,PRC DELEGATED CO-COMMISSIONING,NHS BARNSLEY CCG GP PRACTICE,26116849,"5,792.35"
Department of Health,NHS Barnsley CCG,28/02/2019,C&M-GMS Voluntary Levy,PRC DELEGATED CO-COMMISSIONING,NHS BARNSLEY CCG GP PRACTICE,26116849,127.75
Department of Health,NHS Barnsley CCG,28/02/2019,C&M-PMS Contract Value,PRC DELEGATED CO-COMMISSIONING,NHS BARNSLEY CCG GP PRACTICE,25925258,"103,467.85"
Department of Health,NHS Barnsley CCG,28/02/2019,C&M-PMS DES Learn Dsblty Hlth Chk,PRC DELEGATED CO-COMMISSIONING,NHS BARNSLEY CCG GP PRACTICE,25925258,280.00
Department of Health,NHS Barnsley CCG,28/02/2019,C&M-PMS DES Minor Surgery,PRC DELEGATED CO-COMMISSIONING,NHS BARNSLEY CCG GP PRACTICE,25925258,"6,691.34"
Department of Health,NHS Barnsley CCG,28/02/2019,C&M-PMS Out of Hours Opt Outs,PRC DELEGATED CO-COMMISSIONING,NHS BARNSLEY CCG GP PRACTICE,25925258,49.22
Department of Health,NHS Barnsley CCG,28/02/2019,C&M-PMS Prem Actual Rent,PRC DELEGATED CO-COMMISSIONING,NHS BARNSLEY CCG GP PRACTICE,25925258,"6,027.53"
Department of Health,NHS Barnsley CCG,28/02/2019,C&M-PMS QOF Aspiration,PRC DELEGATED CO-COMMISSIONING,NHS BARNSLEY CCG GP PRACTICE,25925258,"11,132.85"
Department of Health,NHS Barnsley CCG,28/02/2019,ME - PMS GP Prior Year ERs,PRC DELEGATED CO-COMMISSIONING,NHS BARNSLEY CCG GP PRACTICE,25925258,120.37
Department of Health,NHS Barnsley CCG,28/02/2019,ME-PMS GP Prior Year EEs,PRC DELEGATED CO-COMMISSIONING,NHS BARNSLEY CCG GP PRACTICE,25925258,300.07
Department of Health,NHS Barnsley CCG,28/02/2019,C&M-GMS Global Sum,PRC DELEGATED CO-COMMISSIONING,NHS BARNSLEY CCG GP PRACTICE,26116853,"48,977.97"
Department of Health,NHS Barnsley CCG,28/02/2019,C&M-GMS Prem Notional Rent,PRC DELEGATED CO-COMMISSIONING,NHS BARNSLEY CCG GP PRACTICE,26116853,"2,750.01"
Department of Health,NHS Barnsley CCG,28/02/2019,C&M-GMS Prem Rates,PRC DELEGATED CO-COMMISSIONING,NHS BARNSLEY CCG GP PRACTICE,26116853,502.00
Department of Health,NHS Barnsley CCG,28/02/2019,C&M-GMS Prem Water Rates,PRC DELEGATED CO-COMMISSIONING,NHS BARNSLEY CCG GP PRACTICE,26116853,171.13
Department of Health,NHS Barnsley CCG,28/02/2019,C&M-GMS QOF Aspiration,PRC DELEGATED CO-COMMISSIONING,NHS BARNSLEY CCG GP PRACTICE,26116853,"4,113.34"
Department of Health,NHS Barnsley CCG,28/02/2019,C&M-GMS Voluntary Levy,PRC DELEGATED CO-COMMISSIONING,NHS BARNSLEY CCG GP PRACTICE,26116853,253.83
Department of Health,NHS Barnsley CCG,28/02/2019,Clinical&Medical-Commercial Sector,LEARNING DIFFICULTIES,GABLES PRIORY,26062640,"45,614.40"
Department of Health,NHS Barnsley CCG,28/02/2019,Clinical&Medical-Commercial Sector,LEARNING DIFFICULTIES,GABLES PRIORY,26062666,"-25,822.50"
Department of Health,NHS Barnsley CCG,28/02/2019,Cont Care-Learning Disab(<65),CHC ADULT FULLY FUNDED,HESLEY GROUP,25835412,"102,454.22"
Department of Health,NHS Barnsley CCG,28/02/2019,Soc Care-Bed-Based Int Care Servs,INTERMEDIATE CARE,HIGHSTONE MEWS CARE HOME,25856755,"35,145.43"
Department of Health,NHS Barnsley CCG,28/02/2019,Apprenticeship Levy Payable,BALANCE SHEET,HMRC,25961989,830.00
Department of Health,NHS Barnsley CCG,28/02/2019,Income tax <1Yr,BALANCE SHEET,HMRC,25961989,"64,193.26"
Department of Health,NHS Barnsley CCG,28/02/2019,Income tax <1Yr-Student Loans,BALANCE SHEET,HMRC,25961989,"1,094.00"
Department of Health,NHS Barnsley CCG,28/02/2019,National Insurance < 1 yr-NI- ERS,BALANCE SHEET,HMRC,25961989,"43,820.84"
Department of Health,NHS Barnsley CCG,28/02/2019,National Insurance < 1 yr-NI-EES,BALANCE SHEET,HMRC,25961989,"31,502.17"
Department of Health,NHS Barnsley CCG,28/02/2019,Statutory Mat Pay < 1 yr,BALANCE SHEET,HMRC,25961989,"-2,422.80"
Department of Health,NHS Barnsley CCG,28/02/2019,C&M-GMS DES Learn Dsblty Hlth Chk,PRC DELEGATED CO-COMMISSIONING,NHS BARNSLEY CCG GP PRACTICE,26116855,420.00
Department of Health,NHS Barnsley CCG,28/02/2019,C&M-GMS Global Sum,PRC DELEGATED CO-COMMISSIONING,NHS BARNSLEY CCG GP PRACTICE,26116855,"88,787.24"
Department of Health,NHS Barnsley CCG,28/02/2019,C&M-GMS Prem Healthcentre Rent,PRC DELEGATED CO-COMMISSIONING,NHS BARNSLEY CCG GP PRACTICE,26116855,"21,846.34"
Department of Health,NHS Barnsley CCG,28/02/2019,C&M-GMS Prem Notional Rent,PRC DELEGATED CO-COMMISSIONING,NHS BARNSLEY CCG GP PRACTICE,26116855,"2,566.67"
Department of Health,NHS Barnsley CCG,28/02/2019,C&M-GMS QOF Aspiration,PRC DELEGATED CO-COMMISSIONING,NHS BARNSLEY CCG GP PRACTICE,26116855,"9,466.80"
Department of Health,NHS Barnsley CCG,28/02/2019,C&M-GMS Voluntary Levy,PRC DELEGATED CO-COMMISSIONING,NHS BARNSLEY CCG GP PRACTICE,26116855,152.25
Department of Health,NHS Barnsley CCG,28/02/2019,C&M-PMS Contract Value,PRC DELEGATED CO-COMMISSIONING,NHS BARNSLEY CCG GP PRACTICE,25925266,"51,095.13"
Department of Health,NHS Barnsley CCG,28/02/2019,C&M-PMS Out of Hours Opt Outs,PRC DELEGATED CO-COMMISSIONING,NHS BARNSLEY CCG GP PRACTICE,25925266,19.50
Department of Health,NHS Barnsley CCG,28/02/2019,C&M-PMS Prem Healthcentre Rent,PRC DELEGATED CO-COMMISSIONING,NHS BARNSLEY CCG GP PRACTICE,25925266,"6,045.20"
Department of Health,NHS Barnsley CCG,28/02/2019,C&M-PMS Prem Notional Rent,PRC DELEGATED CO-COMMISSIONING,NHS BARNSLEY CCG GP PRACTICE,25925266,"3,583.33"
Department of Health,NHS Barnsley CCG,28/02/2019,C&M-PMS QOF Aspiration,PRC DELEGATED CO-COMMISSIONING,NHS BARNSLEY CCG GP PRACTICE,25925266,"4,927.45"
Department of Health,NHS Barnsley CCG,28/02/2019,External Data Contracts,BUSINESS INFORMATICS,KIER BUSINESS SERVICES LTD,25870983,"13,850.00"
Department of Health,NHS Barnsley CCG,28/02/2019,External Data Contracts,COMMISSIONING SCHEMES,KIER BUSINESS SERVICES LTD,25870983,"15,206.00"
Department of Health,NHS Barnsley CCG,28/02/2019,Telecoms-Data lines,PRIMARY CARE IT,KIER BUSINESS SERVICES LTD,25870983,"48,439.00"
Department of Health,NHS Barnsley CCG,28/02/2019,Telecoms-Data lines,PRIMARY CARE IT,KIER BUSINESS SERVICES LTD,26203431,"-90,419.96"
Department of Health,NHS Barnsley CCG,28/02/2019,C&M-PMS Contract Value,PRC DELEGATED CO-COMMISSIONING,NHS BARNSLEY CCG GP PRACTICE,25929974,"29,705.58"
Department of Health,NHS Barnsley CCG,28/02/2019,C&M-PMS DES Minor Surgery,PRC DELEGATED CO-COMMISSIONING,NHS BARNSLEY CCG GP PRACTICE,25929974,468.82
Department of Health,NHS Barnsley CCG,28/02/2019,C&M-PMS Prem Notional Rent,PRC DELEGATED CO-COMMISSIONING,NHS BARNSLEY CCG GP PRACTICE,25929974,"4,333.33"
Department of Health,NHS Barnsley CCG,28/02/2019,C&M-PMS Prem Rates,PRC DELEGATED CO-COMMISSIONING,NHS BARNSLEY CCG GP PRACTICE,25929974,"1,024.00"
Department of Health,NHS Barnsley CCG,28/02/2019,C&M-PMS QOF Aspiration,PRC DELEGATED CO-COMMISSIONING,NHS BARNSLEY CCG GP PRACTICE,25929974,"2,056.83"
Department of Health,NHS Barnsley CCG,28/02/2019,C&M-PMS Cost of Drugs -Dispensing,LOCAL ENHANCED SERVICES,NHS BARNSLEY CCG GP PRACTICE,26141642,"28,355.76"
Department of Health,NHS Barnsley CCG,28/02/2019,C&M-PMS Prof fees Dispensing,PRC DELEGATED CO-COMMISSIONING,NHS BARNSLEY CCG GP PRACTICE,26141642,"5,796.85"
Department of Health,NHS Barnsley CCG,28/02/2019,C&M-PMS Prsc Chrgs Cll&Rmttd by GPs,LOCAL ENHANCED SERVICES,NHS BARNSLEY CCG GP PRACTICE,26141642,"1,390.40"
Department of Health,NHS Barnsley CCG,28/02/2019,C&M-APMS Contract Value,PRC DELEGATED CO-COMMISSIONING,NHS BARNSLEY CCG GP PRACTICE,25925274,"19,808.71"
Department of Health,NHS Barnsley CCG,28/02/2019,C&M-APMS OOH Opt Outs,PRC DELEGATED CO-COMMISSIONING,NHS BARNSLEY CCG GP PRACTICE,25925274,7.15
Department of Health,NHS Barnsley CCG,28/02/2019,C&M-APMS Prem Healthcentre Rent,PRC DELEGATED CO-COMMISSIONING,NHS BARNSLEY CCG GP PRACTICE,25925274,"4,868.97"
Department of Health,NHS Barnsley CCG,28/02/2019,C&M-PMS DES Learn Dsblty Hlth Chk,PRC DELEGATED CO-COMMISSIONING,NHS BARNSLEY CCG GP PRACTICE,25925274,700.00
Department of Health,NHS Barnsley CCG,28/02/2019,C&M-PMS QOF Aspiration,PRC DELEGATED CO-COMMISSIONING,NHS BARNSLEY CCG GP PRACTICE,25925274,"1,621.22"
Department of Health,NHS Barnsley CCG,28/02/2019,Hcare Srv Rec NHS Trust-Contract Baseline,ACUTE COMMISSIONING,LEEDS TEACHING HOSPITALS NHS TRUST,25907030,"142,205.83"
Department of Health,NHS Barnsley CCG,31/01/2019,Hcare Srv Rec NHS Trust-CQUIN,ACUTE COMMISSIONING,LEEDS TEACHING HOSPITALS NHS TRUST,25634663,"1,797.00"
Department of Health,NHS Barnsley CCG,31/01/2019,Hcare Srv Rec NHS Trust-Contract Baseline,ACUTE COMMISSIONING,LEEDS TEACHING HOSPITALS NHS TRUST,25634663,"91,655.00"
Department of Health,NHS Barnsley CCG,28/02/2019,Hcare Srv Rec NHS Trust-CQUIN,ACUTE COMMISSIONING,MID YORKSHIRE HOSPITALS NHS TRUST,25907047,"2,465.00"
Department of Health,NHS Barnsley CCG,28/02/2019,Hcare Srv Rec NHS Trust-Contract Baseline,ACUTE COMMISSIONING,MID YORKSHIRE HOSPITALS NHS TRUST,25907047,"224,013.00"
Department of Health,NHS Barnsley CCG,31/01/2019,C&M-GMS Prem Other,PRC DELEGATED CO-COMMISSIONING,NHS ENGLAND,25771295,"13,709.28"
Department of Health,NHS Barnsley CCG,31/01/2019,C&M-PMS Prem Clinical Waste,PRC DELEGATED CO-COMMISSIONING,NHS ENGLAND,25771295,"3,124.28"
Department of Health,NHS Barnsley CCG,31/01/2019,Recharge : Provided,PRC DELEGATED CO-COMMISSIONING,NHS ENGLAND,25771295,"25,680.00"
Department of Health,NHS Barnsley CCG,28/02/2019,External Consultancy Fees,ADMINISTRATION & BUSINESS SUPPORT,OUTCOMES BASED HEALTHCARE LTD,25910896,"30,496.82"
Department of Health,NHS Barnsley CCG,28/02/2019,Other Gen Supplies & Srv,PATIENT TRANSPORT,PREMIER CARE DIRECT LTD,26062676,"35,025.67"
Department of Health,NHS Barnsley CCG,28/02/2019,Hcare Srv Rec Fdtn Trust-CQUIN,MENTAL HEALTH CONTRACTS,ROTHERHAM DONCASTER & SOUTH HUMBER MENTAL HEALTH NHS FOUNDATION TRUST,25907142,425.50
Department of Health,NHS Barnsley CCG,28/02/2019,Hcare Srv Rec Fdtn Trust-Contract Baseline,MENTAL HEALTH CONTRACTS,ROTHERHAM DONCASTER & SOUTH HUMBER MENTAL HEALTH NHS FOUNDATION TRUST,25907142,"34,043.08"
Department of Health,NHS Barnsley CCG,28/02/2019,Cont Care- Prior Year Payments,CHC AD JNT FUND PERS HLTH BUD,ROTHERHAM METROPOLITAN BOROUGH COUNCIL,25869138,"133,887.39"
Department of Health,NHS Barnsley CCG,28/02/2019,Cont Care-Learning Disab(<65),CHC AD JNT FUND PERS HLTH BUD,ROTHERHAM METROPOLITAN BOROUGH COUNCIL,25869138,"11,970.06"
Department of Health,NHS Barnsley CCG,28/02/2019,Cont Care- Prior Year Payments,CHC AD JNT FUND PERS HLTH BUD,ROTHERHAM METROPOLITAN BOROUGH COUNCIL,25869170,"-66,943.69"
Department of Health,NHS Barnsley CCG,28/02/2019,Cont Care-Learning Disab(<65),CHC AD JNT FUND PERS HLTH BUD,ROTHERHAM METROPOLITAN BOROUGH COUNCIL,25869170,"-5,985.03"
Department of Health,NHS Barnsley CCG,28/02/2019,Cont Care- Adult Joint Funded,ADULT JOINT FUNDED CONTINUING CARE,ROTHERHAM METROPOLITAN BOROUGH COUNCIL,26022339,"27,194.77"
Department of Health,NHS Barnsley CCG,28/02/2019,Hcare Srv Rec Fdtn Trust-CQUIN,ACUTE COMMISSIONING,ROTHERHAM NHS FOUNDATION TRUST,25962052,"5,098.00"
Department of Health,NHS Barnsley CCG,28/02/2019,Hcare Srv Rec Fdtn Trust-Contract Baseline,ACUTE COMMISSIONING,ROTHERHAM NHS FOUNDATION TRUST,25962052,"439,320.00"
Department of Health,NHS Barnsley CCG,28/02/2019,Hcare Srv Rec Fdtn Trust-CQUIN,COMMUNITY SERVICES,ROTHERHAM NHS FOUNDATION TRUST,25962062,"1,021.00"
Department of Health,NHS Barnsley CCG,28/02/2019,Hcare Srv Rec Fdtn Trust-Contract Baseline,COMMUNITY SERVICES,ROTHERHAM NHS FOUNDATION TRUST,25962062,"40,828.00"
Department of Health,NHS Barnsley CCG,28/02/2019,Hcare Srv Rec Fdtn Trust-CQUIN,ACUTE COMMISSIONING,ROTHERHAM NHS FOUNDATION TRUST,25971993,"5,098.00"
Department of Health,NHS Barnsley CCG,28/02/2019,Hcare Srv Rec Fdtn Trust-Contract Baseline,ACUTE COMMISSIONING,ROTHERHAM NHS FOUNDATION TRUST,25971993,"439,320.00"
Department of Health,NHS Barnsley CCG,28/02/2019,Hcare Srv Rec Fdtn Trust-CQUIN,COMMUNITY SERVICES,ROTHERHAM NHS FOUNDATION TRUST,25971994,"1,021.00"
Department of Health,NHS Barnsley CCG,28/02/2019,Hcare Srv Rec Fdtn Trust-Contract Baseline,COMMUNITY SERVICES,ROTHERHAM NHS FOUNDATION TRUST,25971994,"40,828.00"
Department of Health,NHS Barnsley CCG,28/02/2019,Hcare Srv Rec Fdtn Trust-Contract Baseline,ACUTE COMMISSIONING,ROTHERHAM NHS FOUNDATION TRUST,26027032,"-319,500.00"
Department of Health,NHS Barnsley CCG,28/02/2019,Hcare Srv Rec NHS Trust-Non Contract,NCAS/OATS,ROYAL CORNWALL HOSPITALS NHS TRUST,25882457,"-25,902.00"
Department of Health,NHS Barnsley CCG,28/02/2019,Hcare Srv Rec NHS Trust-Non Contract,NCAS/OATS,ROYAL CORNWALL HOSPITALS NHS TRUST,25946082,"25,902.00"
Department of Health,NHS Barnsley CCG,28/02/2019,C&M-GMS Global Sum,PRC DELEGATED CO-COMMISSIONING,NHS BARNSLEY CCG GP PRACTICE,26116976,"61,653.45"
Department of Health,NHS Barnsley CCG,28/02/2019,C&M-GMS Prem Notional Rent,PRC DELEGATED CO-COMMISSIONING,NHS BARNSLEY CCG GP PRACTICE,26116976,"8,873.23"
Department of Health,NHS Barnsley CCG,28/02/2019,C&M-GMS Prem Rates,PRC DELEGATED CO-COMMISSIONING,NHS BARNSLEY CCG GP PRACTICE,26116976,870.00
Department of Health,NHS Barnsley CCG,28/02/2019,C&M-GMS QOF Aspiration,PRC DELEGATED CO-COMMISSIONING,NHS BARNSLEY CCG GP PRACTICE,26116976,"7,007.14"
Department of Health,NHS Barnsley CCG,28/02/2019,C&M-GMS Voluntary Levy,PRC DELEGATED CO-COMMISSIONING,NHS BARNSLEY CCG GP PRACTICE,26116976,100.22
Department of Health,NHS Barnsley CCG,31/01/2019,Hcare Srv Rec Fdtn Trust-Contract Baseline,ACUTE COMMISSIONING,SHEFFIELD TEACHING HOSPITALS NHS FOUNDATION TRUST,25619375,"1,830,587.00"
Department of Health,NHS Barnsley CCG,31/01/2019,Hcare Srv Rec Fdtn Trust-Contract Baseline,ACUTE COMMISSIONING,SHEFFIELD TEACHING HOSPITALS NHS FOUNDATION TRUST,25619380,"175,894.00"
Department of Health,NHS Barnsley CCG,28/02/2019,Hcare Srv Rec Fdtn Trust-CQUIN,COMMUNITY SERVICES,SOUTH WEST YORKSHIRE PARTNERSHIP NHS FOUNDATION TRUST,26062667,"-27,651.00"
Department of Health,NHS Barnsley CCG,28/02/2019,Hcare Srv Rec Fdtn Trust-CQUIN,IMPROVING ACCESS TO PSYCHOLOGICAL THERAPIES,SOUTH WEST YORKSHIRE PARTNERSHIP NHS FOUNDATION TRUST,26062667,"-2,408.00"
Department of Health,NHS Barnsley CCG,28/02/2019,Hcare Srv Rec Fdtn Trust-CQUIN,LEARNING DIFFICULTIES,SOUTH WEST YORKSHIRE PARTNERSHIP NHS FOUNDATION TRUST,26062667,"-4,106.00"
Department of Health,NHS Barnsley CCG,28/02/2019,Hcare Srv Rec Fdtn Trust-CQUIN,MENTAL HEALTH SERVICES - ADULTS,SOUTH WEST YORKSHIRE PARTNERSHIP NHS FOUNDATION TRUST,26062667,"-43,901.00"
Department of Health,NHS Barnsley CCG,28/02/2019,Hcare Srv Rec Fdtn Trust-CQUIN,MENTAL HEALTH SERVICES - OLDER PEOPLE,SOUTH WEST YORKSHIRE PARTNERSHIP NHS FOUNDATION TRUST,26062667,"-5,146.00"
Department of Health,NHS Barnsley CCG,31/01/2019,Cont Care-NHSFT-FNC Continence,FUNDED NURSING CARE,SOUTH WEST YORKSHIRE PARTNERSHIP NHS FOUNDATION TRUST,25692986,"6,989.04"
Department of Health,NHS Barnsley CCG,31/01/2019,Continence Products,CHC ADULT FULLY FUNDED,SOUTH WEST YORKSHIRE PARTNERSHIP NHS FOUNDATION TRUST,25692986,"18,512.58"
Department of Health,NHS Barnsley CCG,31/01/2019,Continence Products,CHC ADULT JOINT FUNDED,SOUTH WEST YORKSHIRE PARTNERSHIP NHS FOUNDATION TRUST,25692986,619.16
Department of Health,NHS Barnsley CCG,31/01/2019,Hcare Srv Rec Fdtn Trust-CQUIN,COMMUNITY SERVICES,SOUTH WEST YORKSHIRE PARTNERSHIP NHS FOUNDATION TRUST,25771446,"14,186.00"
Department of Health,NHS Barnsley CCG,31/01/2019,Hcare Srv Rec Fdtn Trust-CQUIN,LEARNING DIFFICULTIES,SOUTH WEST YORKSHIRE PARTNERSHIP NHS FOUNDATION TRUST,25771446,"2,164.00"
Department of Health,NHS Barnsley CCG,31/01/2019,Hcare Srv Rec Fdtn Trust-CQUIN,MENTAL HEALTH SERVICES - ADULTS,SOUTH WEST YORKSHIRE PARTNERSHIP NHS FOUNDATION TRUST,25771446,"23,054.00"
Department of Health,NHS Barnsley CCG,31/01/2019,Hcare Srv Rec Fdtn Trust-CQUIN,MENTAL HEALTH SERVICES - OLDER PEOPLE,SOUTH WEST YORKSHIRE PARTNERSHIP NHS FOUNDATION TRUST,25771446,"2,712.00"
Department of Health,NHS Barnsley CCG,31/01/2019,Hcare Srv Rec Fdtn Trust-Contract Baseline,COMMUNITY SERVICES,SOUTH WEST YORKSHIRE PARTNERSHIP NHS FOUNDATION TRUST,25771446,"1,134,883.00"
Department of Health,NHS Barnsley CCG,31/01/2019,Hcare Srv Rec Fdtn Trust-Contract Baseline,LEARNING DIFFICULTIES,SOUTH WEST YORKSHIRE PARTNERSHIP NHS FOUNDATION TRUST,25771446,"176,044.00"
Department of Health,NHS Barnsley CCG,31/01/2019,Hcare Srv Rec Fdtn Trust-Contract Baseline,MENTAL HEALTH SERVICES - ADULTS,SOUTH WEST YORKSHIRE PARTNERSHIP NHS FOUNDATION TRUST,25771446,"1,865,496.00"
Department of Health,NHS Barnsley CCG,31/01/2019,Hcare Srv Rec Fdtn Trust-Contract Baseline,MENTAL HEALTH SERVICES - OLDER PEOPLE,SOUTH WEST YORKSHIRE PARTNERSHIP NHS FOUNDATION TRUST,25771446,"216,952.00"
Department of Health,NHS Barnsley CCG,28/02/2019,Clinical&Medical-Commercial Sector,NCAS/OATS,SPAMEDICA LTD,25946092,"77,686.87"
Department of Health,NHS Barnsley CCG,28/02/2019,C&M-PMS Contract Value,PRC DELEGATED CO-COMMISSIONING,NHS BARNSLEY CCG GP PRACTICE,25925270,"74,801.24"
Department of Health,NHS Barnsley CCG,28/02/2019,C&M-PMS DES Minor Surgery,PRC DELEGATED CO-COMMISSIONING,NHS BARNSLEY CCG GP PRACTICE,25925270,980.26
Department of Health,NHS Barnsley CCG,28/02/2019,C&M-PMS Out of Hours Opt Outs,PRC DELEGATED CO-COMMISSIONING,NHS BARNSLEY CCG GP PRACTICE,25925270,12.58
Department of Health,NHS Barnsley CCG,28/02/2019,C&M-PMS Prem Actual Rent,PRC DELEGATED CO-COMMISSIONING,NHS BARNSLEY CCG GP PRACTICE,25925270,319.38
Department of Health,NHS Barnsley CCG,28/02/2019,C&M-PMS Prem Healthcentre Rent,PRC DELEGATED CO-COMMISSIONING,NHS BARNSLEY CCG GP PRACTICE,25925270,"20,960.25"
Department of Health,NHS Barnsley CCG,28/02/2019,C&M-PMS QOF Aspiration,PRC DELEGATED CO-COMMISSIONING,NHS BARNSLEY CCG GP PRACTICE,25925270,"6,630.93"
Department of Health,NHS Barnsley CCG,28/02/2019,C&M-PMS Contract Value,PRC DELEGATED CO-COMMISSIONING,NHS BARNSLEY CCG GP PRACTICE,25929972,"44,523.43"
Department of Health,NHS Barnsley CCG,28/02/2019,C&M-PMS DES Learn Dsblty Hlth Chk,PRC DELEGATED CO-COMMISSIONING,NHS BARNSLEY CCG GP PRACTICE,25929972,"1,260.00"
Department of Health,NHS Barnsley CCG,28/02/2019,C&M-PMS Out of Hours Opt Outs,PRC DELEGATED CO-COMMISSIONING,NHS BARNSLEY CCG GP PRACTICE,25929972,3.35
Department of Health,NHS Barnsley CCG,28/02/2019,C&M-PMS Prem Healthcentre Rent,PRC DELEGATED CO-COMMISSIONING,NHS BARNSLEY CCG GP PRACTICE,25929972,"1,107.86"
Department of Health,NHS Barnsley CCG,28/02/2019,C&M-PMS Prem Rates,PRC DELEGATED CO-COMMISSIONING,NHS BARNSLEY CCG GP PRACTICE,25929972,"1,573.00"
Department of Health,NHS Barnsley CCG,28/02/2019,C&M-PMS Prem Water Rates,PRC DELEGATED CO-COMMISSIONING,NHS BARNSLEY CCG GP PRACTICE,25929972,228.35
Department of Health,NHS Barnsley CCG,28/02/2019,C&M-PMS QOF Aspiration,PRC DELEGATED CO-COMMISSIONING,NHS BARNSLEY CCG GP PRACTICE,25929972,"4,023.80"
Department of Health,NHS Barnsley CCG,28/02/2019,Hcare Srv Rec NHS Trust-Contract Baseline,AMBULANCE SERVICES,YORKSHIRE AMBULANCE SERVICE NHS TRUST,25835439,"656,905.00"
Department of Health,NHS Barnsley CCG,28/02/2019,Hcare Srv Rec NHS Trust-Contract Baseline,NHS 111,YORKSHIRE AMBULANCE SERVICE NHS TRUST,25856758,"55,687.00"
Department of Health,NHS Barnsley CCG,28/02/2019,Hcare Srv Rec NHS Trust-Contract Baseline,PATIENT TRANSPORT,YORKSHIRE AMBULANCE SERVICE NHS TRUST,25856764,"125,065.40"
,,,,,,,"33,013,293.27"
